[Event "*** Titled Tuesday Blitz"]
[Site "Chess.com"]
[Date "2019.05.07"]
[Round "7"]
[White "LastHeroJr"]
[Black "bugsbunny444"]
[Result "1-0"]
[WhiteElo "2504"]
[BlackElo "2553"]
[TimeControl "180+2"]
[EndTime "14:39:57 PDT"]
[Termination "LastHeroJr won on time"]

1. e4 {[%clk 0:03:01.9]} 1... e6 {[%clk 0:03:00.8]} 2. d4 {[%clk 0:03:02.6]}
2... d5 {[%clk 0:03:02.7]} 3. Nd2 {[%clk 0:03:04.2]} 3... Nf6 {[%clk 0:03:03.5]}
4. e5 {[%clk 0:03:05.7]} 4... Nfd7 {[%clk 0:03:04.9]} 5. Bd3 {[%clk 0:03:07.3]}
5... c5 {[%clk 0:03:06.8]} 6. c3 {[%clk 0:03:09]} 6... Nc6 {[%clk 0:03:08.7]} 7.
Ne2 {[%clk 0:03:10.6]} 7... cxd4 {[%clk 0:03:10]} 8. cxd4 {[%clk 0:03:12.5]}
8... f6 {[%clk 0:03:11]} 9. exf6 {[%clk 0:03:14.4]} 9... Nxf6 {[%clk 0:03:12.2]}
10. O-O {[%clk 0:03:15.7]} 10... Bd6 {[%clk 0:03:13.9]} 11. Nf3 {[%clk
0:03:17.3]} 11... O-O {[%clk 0:03:15.6]} 12. Bf4 {[%clk 0:03:16.3]} 12... Bxf4
{[%clk 0:03:17]} 13. Nxf4 {[%clk 0:03:18.2]} 13... Qd6 {[%clk 0:03:18.3]} 14.
Ne2 {[%clk 0:03:05.7]} 14... g6 {[%clk 0:03:14.5]} 15. Re1 {[%clk 0:02:51.7]}
15... Bd7 {[%clk 0:02:35.8]} 16. Ng3 {[%clk 0:02:48.3]} 16... Qb4 {[%clk
0:02:36.5]} 17. a3 {[%clk 0:02:36.1]} 17... Qxb2 {[%clk 0:02:34]} 18. Rb1 {[%clk
0:02:34.2]} 18... Qxa3 {[%clk 0:02:35.1]} 19. Rxb7 {[%clk 0:02:35.9]} 19... Rab8
{[%clk 0:02:29.4]} 20. Rxb8 {[%clk 0:02:29.5]} 20... Rxb8 {[%clk 0:02:29.1]} 21.
h4 {[%clk 0:02:28.3]} 21... Rb3 {[%clk 0:01:37.6]} 22. Bc2 {[%clk 0:02:28.5]}
22... Rxf3 {[%clk 0:01:24.6]} 23. gxf3 {[%clk 0:02:26.3]} 23... Qc3 {[%clk
0:01:26.1]} 24. Ba4 {[%clk 0:01:57.2]} 24... Nxd4 {[%clk 0:01:20.9]} 25. Re3
{[%clk 0:01:49.3]} 25... Bxa4 {[%clk 0:00:41.5]} 26. Qxa4 {[%clk 0:01:51.2]}
26... Nxf3+ {[%clk 0:00:42.2]} 27. Kg2 {[%clk 0:01:51.6]} 27... Ne1+ {[%clk
0:00:30]} 28. Kf1 {[%clk 0:01:52.4]} 28... Nd3 {[%clk 0:00:30.6]} 29. Qd1 {[%clk
0:01:40.5]} 29... Nb2 {[%clk 0:00:20]} 30. Qf3 {[%clk 0:00:57.7]} 30... Qd4
{[%clk 0:00:11.6]} 31. Rxe6 {[%clk 0:00:56]} 31... Kg7 {[%clk 0:00:03.3]} 32.
Re7+ {[%clk 0:00:47.1]} 1-0

[Event "*** Titled Tuesday Blitz"]
[Site "Chess.com"]
[Date "2019.05.07"]
[Round "7"]
[White "checkmatequen"]
[Black "VFernandezB"]
[Result "1-0"]
[WhiteElo "2222"]
[BlackElo "2341"]
[TimeControl "180+2"]
[EndTime "14:40:02 PDT"]
[Termination "checkmatequen won by resignation"]

1. e4 {[%clk 0:03:01.9]} 1... c5 {[%clk 0:03:00.1]} 2. Nf3 {[%clk 0:03:01.4]}
2... d6 {[%clk 0:03:01.5]} 3. d4 {[%clk 0:03:01.2]} 3... cxd4 {[%clk 0:03:03.4]}
4. Nxd4 {[%clk 0:03:01.9]} 4... Nf6 {[%clk 0:03:05]} 5. Nc3 {[%clk 0:03:01.6]}
5... a6 {[%clk 0:03:06.6]} 6. Bg5 {[%clk 0:03:02]} 6... Nbd7 {[%clk 0:03:07.2]}
7. Bc4 {[%clk 0:03:01.2]} 7... e6 {[%clk 0:03:07.1]} 8. Qe2 {[%clk 0:02:57.4]}
8... Nc5 {[%clk 0:03:08]} 9. O-O-O {[%clk 0:02:55.3]} 9... b5 {[%clk 0:03:09.2]}
10. Bb3 {[%clk 0:02:52.9]} 10... Qc7 {[%clk 0:03:08.4]} 11. Kb1 {[%clk
0:02:45.5]} 11... Be7 {[%clk 0:03:07.6]} 12. f4 {[%clk 0:02:45]} 12... Bb7
{[%clk 0:03:07.9]} 13. e5 {[%clk 0:02:37.2]} 13... Nxb3 {[%clk 0:03:05.1]} 14.
axb3 {[%clk 0:02:19.9]} 14... dxe5 {[%clk 0:03:01.9]} 15. fxe5 {[%clk
0:02:19.5]} 15... Nd5 {[%clk 0:03:03.2]} 16. Nxd5 {[%clk 0:02:19.9]} 16... Bxd5
{[%clk 0:03:03.1]} 17. Bxe7 {[%clk 0:02:19.7]} 17... Qxe7 {[%clk 0:03:04.6]} 18.
c4 {[%clk 0:02:15.3]} 18... bxc4 {[%clk 0:03:05]} 19. bxc4 {[%clk 0:02:17.2]}
19... Bb7 {[%clk 0:03:06]} 20. Rc1 {[%clk 0:02:03.4]} 20... Rc8 {[%clk
0:03:01.5]} 21. c5 {[%clk 0:01:46.6]} 21... Rxc5 {[%clk 0:02:57.1]} 22. Qd3
{[%clk 0:01:22]} 22... O-O {[%clk 0:02:52.9]} 23. Rhe1 {[%clk 0:01:09]} 23...
Rfc8 {[%clk 0:02:32.8]} 24. Nf3 {[%clk 0:00:59.8]} 24... Rxc1+ {[%clk
0:02:24.7]} 25. Rxc1 {[%clk 0:01:01.7]} 25... Rxc1+ {[%clk 0:02:26]} 26. Kxc1
{[%clk 0:01:02.5]} 26... h6 {[%clk 0:02:27.4]} 27. Qc4 {[%clk 0:00:55.7]} 27...
Bxf3 {[%clk 0:02:26.2]} 28. gxf3 {[%clk 0:00:55.8]} 28... Qg5+ {[%clk
0:02:27.8]} 29. Kb1 {[%clk 0:00:44.3]} 29... Qxe5 {[%clk 0:02:28.3]} 30. Qxa6
{[%clk 0:00:45.5]} 30... Qf5+ {[%clk 0:02:22.4]} 31. Ka2 {[%clk 0:00:44.4]}
31... Qxf3 {[%clk 0:02:24.3]} 32. b4 {[%clk 0:00:42.5]} 32... Qg2+ {[%clk
0:02:22.2]} 33. Ka3 {[%clk 0:00:42.5]} 33... Qxh2 {[%clk 0:02:20]} 34. b5 {[%clk
0:00:43.8]} 34... Qg3+ {[%clk 0:02:14.9]} 35. Ka2 {[%clk 0:00:41.7]} 35... Qf2+
{[%clk 0:02:15.3]} 36. Kb3 {[%clk 0:00:38.4]} 36... Qe3+ {[%clk 0:02:16]} 37.
Ka2 {[%clk 0:00:38.4]} 37... Qd2+ {[%clk 0:02:15.4]} 38. Kb3 {[%clk 0:00:39.5]}
38... Qd5+ {[%clk 0:02:15]} 39. Kb4 {[%clk 0:00:38]} 39... Qd4+ {[%clk
0:02:13.4]} 40. Kb3 {[%clk 0:00:38.2]} 40... Qe3+ {[%clk 0:02:10.5]} 41. Kb4
{[%clk 0:00:38.4]} 41... Qf4+ {[%clk 0:02:11.8]} 42. Kb3 {[%clk 0:00:38]} 42...
Kh7 {[%clk 0:02:09.8]} 43. b6 {[%clk 0:00:36.5]} 43... e5 {[%clk 0:02:06.2]} 44.
b7 {[%clk 0:00:36.3]} 44... e4 {[%clk 0:02:07.3]} 45. Qb5 {[%clk 0:00:34.9]}
45... Qg3+ {[%clk 0:01:58.3]} 46. Ka4 {[%clk 0:00:30.7]} 46... Qb8 {[%clk
0:01:55.3]} 47. Qf5+ {[%clk 0:00:30.3]} 47... g6 {[%clk 0:01:56]} 48. Qxf7+
{[%clk 0:00:31]} 48... Kh8 {[%clk 0:01:56.8]} 49. Qd7 {[%clk 0:00:28.4]} 49...
Qa7+ {[%clk 0:01:55.2]} 50. Kb5 {[%clk 0:00:29.1]} 50... Qa2 {[%clk 0:01:39]}
51. b8=Q+ {[%clk 0:00:27.6]} 1-0

[Event "*** Titled Tuesday Blitz"]
[Site "Chess.com"]
[Date "2019.05.07"]
[Round "7"]
[White "LonesomeGeorge1"]
[Black "NateSolon"]
[Result "1/2-1/2"]
[WhiteElo "2376"]
[BlackElo "2496"]
[TimeControl "180+2"]
[EndTime "14:40:06 PDT"]
[Termination "Game drawn by agreement"]

1. c4 {[%clk 0:03:01.9]} 1... Nf6 {[%clk 0:03:00.7]} 2. g3 {[%clk 0:03:03]} 2...
e6 {[%clk 0:03:01.9]} 3. Bg2 {[%clk 0:03:03.5]} 3... d5 {[%clk 0:03:03.2]} 4.
Nf3 {[%clk 0:03:03.8]} 4... Be7 {[%clk 0:03:04.2]} 5. O-O {[%clk 0:03:04.2]}
5... O-O {[%clk 0:03:05.3]} 6. b3 {[%clk 0:03:04.4]} 6... b6 {[%clk 0:03:06.5]}
7. e3 {[%clk 0:03:04.7]} 7... c5 {[%clk 0:03:05.4]} 8. Bb2 {[%clk 0:03:04.8]}
8... Nc6 {[%clk 0:03:04.4]} 9. cxd5 {[%clk 0:03:03.6]} 9... Nxd5 {[%clk
0:03:04.2]} 10. d4 {[%clk 0:03:03.1]} 10... cxd4 {[%clk 0:03:05.1]} 11. Nxd4
{[%clk 0:03:04.1]} 11... Nxd4 {[%clk 0:03:06.1]} 12. Bxd4 {[%clk 0:03:03]} 12...
Bb7 {[%clk 0:03:05.5]} 13. Nd2 {[%clk 0:02:58.2]} 13... Rc8 {[%clk 0:03:01.8]}
14. Rc1 {[%clk 0:02:55.2]} 14... Qd7 {[%clk 0:02:40.2]} 15. Nc4 {[%clk
0:02:46.1]} 15... f6 {[%clk 0:02:37.1]} 16. Qd2 {[%clk 0:02:33.6]} 16... Rfd8
{[%clk 0:02:30.1]} 17. Rfd1 {[%clk 0:02:33.3]} 17... Nb4 {[%clk 0:02:20.2]} 18.
f4 {[%clk 0:02:11]} 18... Bxg2 {[%clk 0:02:16.9]} 19. Qxg2 {[%clk 0:02:12.9]}
19... Qd5 {[%clk 0:02:05.6]} 20. Qxd5 {[%clk 0:01:47]} 20... exd5 {[%clk
0:01:45.1]} 21. Na3 {[%clk 0:01:32.5]} 21... Nxa2 {[%clk 0:00:58.9]} 22. Ra1
{[%clk 0:01:22.8]} 22... Nb4 {[%clk 0:00:50.1]} 23. Nb5 {[%clk 0:01:19.9]} 23...
a6 {[%clk 0:00:51.2]} 24. Nc3 {[%clk 0:00:56]} 24... Nc2 {[%clk 0:00:42.4]} 25.
Rac1 {[%clk 0:00:57.2]} 25... Nxd4 {[%clk 0:00:39.9]} 26. Rxd4 {[%clk
0:00:59.1]} 26... Bc5 {[%clk 0:00:36.7]} 27. Rd3 {[%clk 0:00:54.6]} 27... d4
{[%clk 0:00:33.2]} 28. Rcd1 {[%clk 0:00:46.2]} 28... Kf7 {[%clk 0:00:24.3]} 29.
Ne4 {[%clk 0:00:37.9]} 29... Re8 {[%clk 0:00:21.4]} 30. Nxc5 {[%clk 0:00:37.5]}
30... bxc5 {[%clk 0:00:20.3]} 31. exd4 {[%clk 0:00:38.3]} 31... cxd4 {[%clk
0:00:21.2]} 32. Rxd4 {[%clk 0:00:38.8]} 32... Re2 {[%clk 0:00:21.2]} 33. R1d2
{[%clk 0:00:38.2]} 33... Rc2 {[%clk 0:00:21.4]} 34. Rxe2 {[%clk 0:00:30.6]}
34... Rxe2 {[%clk 0:00:22.6]} 35. Ra4 {[%clk 0:00:30.6]} 35... Rb2 {[%clk
0:00:23]} 36. Rxa6 {[%clk 0:00:29.4]} 36... Rxb3 {[%clk 0:00:24]} 37. Kg2 {[%clk
0:00:30.7]} 1/2-1/2

[Event "*** Titled Tuesday Blitz"]
[Site "Chess.com"]
[Date "2019.05.07"]
[Round "7"]
[White "DrBergerBerger"]
[Black "c63_amg"]
[Result "0-1"]
[WhiteElo "2426"]
[BlackElo "2657"]
[TimeControl "180+2"]
[EndTime "14:40:13 PDT"]
[Termination "c63_amg won by resignation"]

1. e4 {[%clk 0:03:01.9]} 1... c5 {[%clk 0:03:00.4]} 2. Nc3 {[%clk 0:03:02.2]}
2... d6 {[%clk 0:03:00]} 3. f4 {[%clk 0:03:02.5]} 3... g6 {[%clk 0:02:59.6]} 4.
Nf3 {[%clk 0:03:03.5]} 4... Bg7 {[%clk 0:03:01]} 5. Bb5+ {[%clk 0:03:04.7]} 5...
Bd7 {[%clk 0:03:01.6]} 6. Bc4 {[%clk 0:03:05.2]} 6... e6 {[%clk 0:02:51.6]} 7.
O-O {[%clk 0:03:02.5]} 7... Ne7 {[%clk 0:02:53]} 8. d3 {[%clk 0:02:57.4]} 8...
Nbc6 {[%clk 0:02:45.4]} 9. f5 {[%clk 0:02:57.6]} 9... gxf5 {[%clk 0:02:41.2]}
10. Ng5 {[%clk 0:02:57.8]} 10... h6 {[%clk 0:02:38]} 11. Nxf7 {[%clk 0:02:56.6]}
11... Kxf7 {[%clk 0:02:38.6]} 12. exf5 {[%clk 0:02:57.1]} 12... Bd4+ {[%clk
0:02:08.3]} 13. Kh1 {[%clk 0:02:54.6]} 13... Kg8 {[%clk 0:01:41]} 14. fxe6
{[%clk 0:02:51.6]} 14... Be8 {[%clk 0:01:41.9]} 15. Bd2 {[%clk 0:02:32.6]} 15...
Rh7 {[%clk 0:01:38.4]} 16. Qf3 {[%clk 0:02:16.3]} 16... Bg6 {[%clk 0:01:36.6]}
17. Rae1 {[%clk 0:01:53.4]} 17... Ne5 {[%clk 0:01:27]} 18. Qg3 {[%clk
0:01:50.6]} 18... Kh8 {[%clk 0:01:18]} 19. Bb3 {[%clk 0:01:36.6]} 19... Qg8
{[%clk 0:01:05.7]} 20. Nd5 {[%clk 0:01:19.9]} 20... Nf5 {[%clk 0:00:46.7]} 21.
Qh3 {[%clk 0:01:06.2]} 21... c4 {[%clk 0:00:39.2]} 22. dxc4 {[%clk 0:00:56.8]}
22... Rf8 {[%clk 0:00:26.2]} 23. c3 {[%clk 0:00:37.2]} 23... Bc5 {[%clk
0:00:26.9]} 24. e7 {[%clk 0:00:31.7]} 24... Nxe7 {[%clk 0:00:14.6]} 25. Nxe7
{[%clk 0:00:30.1]} 25... Rxf1+ {[%clk 0:00:16]} 26. Rxf1 {[%clk 0:00:29.5]}
26... Rxe7 {[%clk 0:00:17.9]} 27. Bxh6 {[%clk 0:00:23.7]} 27... Rh7 {[%clk
0:00:19.3]} 28. Qh4 {[%clk 0:00:14.9]} 28... Nd7 {[%clk 0:00:20.2]} 29. Qf4
{[%clk 0:00:09.2]} 29... Rf7 {[%clk 0:00:18.9]} 30. Qc1 {[%clk 0:00:09.9]} 30...
Be4 {[%clk 0:00:18.1]} 0-1

[Event "*** Titled Tuesday Blitz"]
[Site "Chess.com"]
[Date "2019.05.07"]
[Round "7"]
[White "TregubovP"]
[Black "2165149677570"]
[Result "1-0"]
[WhiteElo "2539"]
[BlackElo "2329"]
[TimeControl "180+2"]
[EndTime "14:40:17 PDT"]
[Termination "TregubovP won by resignation"]

1. d4 {[%clk 0:03:01.9]} 1... Nf6 {[%clk 0:02:59.9]} 2. c4 {[%clk 0:03:03]} 2...
e6 {[%clk 0:03:00.5]} 3. Nc3 {[%clk 0:03:03.5]} 3... Bb4 {[%clk 0:03:01]} 4. e3
{[%clk 0:03:04.8]} 4... b6 {[%clk 0:03:00.1]} 5. Ne2 {[%clk 0:02:58.8]} 5... c5
{[%clk 0:03:01.3]} 6. a3 {[%clk 0:02:54.4]} 6... Ba5 {[%clk 0:03:01.2]} 7. Rb1
{[%clk 0:02:51.1]} 7... Na6 {[%clk 0:03:02.3]} 8. Bd2 {[%clk 0:02:43.4]} 8...
O-O {[%clk 0:02:50.8]} 9. g3 {[%clk 0:02:26.3]} 9... Bb7 {[%clk 0:02:44.2]} 10.
d5 {[%clk 0:02:27.4]} 10... b5 {[%clk 0:02:41.5]} 11. Bg2 {[%clk 0:02:13.2]}
11... bxc4 {[%clk 0:02:42.1]} 12. e4 {[%clk 0:02:14.4]} 12... exd5 {[%clk
0:02:41]} 13. exd5 {[%clk 0:02:14.7]} 13... d6 {[%clk 0:02:38.9]} 14. O-O {[%clk
0:02:15.2]} 14... Nc7 {[%clk 0:02:28.2]} 15. Bg5 {[%clk 0:02:11.7]} 15... h6
{[%clk 0:02:27.2]} 16. Bxf6 {[%clk 0:02:12.5]} 16... Qxf6 {[%clk 0:02:28.5]} 17.
Qa4 {[%clk 0:02:13.4]} 17... Bb6 {[%clk 0:01:59.9]} 18. Rfe1 {[%clk 0:01:54.1]}
18... Rfe8 {[%clk 0:01:59.1]} 19. Ne4 {[%clk 0:01:47.8]} 19... Qg6 {[%clk
0:01:53.6]} 20. N2c3 {[%clk 0:01:45.3]} 20... f5 {[%clk 0:01:15.5]} 21. Nd2
{[%clk 0:01:42.6]} 21... f4 {[%clk 0:00:57.3]} 22. Nxc4 {[%clk 0:01:41.9]} 22...
fxg3 {[%clk 0:00:55]} 23. hxg3 {[%clk 0:01:42]} 23... Rf8 {[%clk 0:00:27.7]} 24.
Rbd1 {[%clk 0:01:11.5]} 24... Rf7 {[%clk 0:00:15.1]} 25. Rd2 {[%clk 0:01:03.1]}
25... Raf8 {[%clk 0:00:15]} 26. Qc2 {[%clk 0:00:52.9]} 26... Qg4 {[%clk
0:00:07.8]} 27. Nxd6 {[%clk 0:00:47.3]} 27... Ba6 {[%clk 0:00:05]} 28. Nxf7
{[%clk 0:00:46.5]} 28... Rxf7 {[%clk 0:00:06.3]} 29. d6 {[%clk 0:00:41.9]} 29...
c4 {[%clk 0:00:03.9]} 30. dxc7 {[%clk 0:00:34]} 30... Qxg3 {[%clk 0:00:05.1]}
31. Re8+ {[%clk 0:00:27.8]} 31... Rf8 {[%clk 0:00:03.9]} 32. Rxf8+ {[%clk
0:00:26.8]} 32... Kxf8 {[%clk 0:00:05.8]} 33. Qf5+ {[%clk 0:00:25.7]} 1-0

[Event "*** Titled Tuesday Blitz"]
[Site "Chess.com"]
[Date "2019.05.07"]
[Round "7"]
[White "Heineccius"]
[Black "Gubajdullin"]
[Result "0-1"]
[WhiteElo "2490"]
[BlackElo "2549"]
[TimeControl "180+2"]
[EndTime "14:40:22 PDT"]
[Termination "Gubajdullin won by resignation"]

1. d4 {[%clk 0:03:01.9]} 1... d5 {[%clk 0:03:00]} 2. c4 {[%clk 0:03:02.6]} 2...
c6 {[%clk 0:03:01.2]} 3. Nf3 {[%clk 0:03:03.2]} 3... Nf6 {[%clk 0:03:02.1]} 4.
Nc3 {[%clk 0:03:02.5]} 4... a6 {[%clk 0:03:03.1]} 5. c5 {[%clk 0:03:02.4]} 5...
Nbd7 {[%clk 0:03:01.8]} 6. Bf4 {[%clk 0:03:00.7]} 6... Nh5 {[%clk 0:03:02.4]} 7.
e3 {[%clk 0:03:01.7]} 7... g6 {[%clk 0:02:55]} 8. Be2 {[%clk 0:02:49.7]} 8...
Bg7 {[%clk 0:02:55.5]} 9. O-O {[%clk 0:02:48]} 9... Nxf4 {[%clk 0:02:54]} 10.
exf4 {[%clk 0:02:48]} 10... b6 {[%clk 0:02:55.1]} 11. cxb6 {[%clk 0:02:03.4]}
11... Qxb6 {[%clk 0:02:47.5]} 12. Na4 {[%clk 0:02:03.4]} 12... Qb4 {[%clk
0:02:38.6]} 13. Ne5 {[%clk 0:01:52.8]} 13... c5 {[%clk 0:02:35.9]} 14. a3 {[%clk
0:01:22.9]} 14... Qxd4 {[%clk 0:02:36.3]} 15. Qxd4 {[%clk 0:01:19.6]} 15... cxd4
{[%clk 0:02:36.3]} 16. Nc6 {[%clk 0:00:40.5]} 16... g5 {[%clk 0:02:21.4]} 17. f5
{[%clk 0:00:37.1]} 17... e5 {[%clk 0:02:16.6]} 18. fxe6 {[%clk 0:00:37.1]} 18...
fxe6 {[%clk 0:02:16.2]} 19. Bg4 {[%clk 0:00:31.8]} 19... e5 {[%clk 0:02:13.8]}
20. Rad1 {[%clk 0:00:24.9]} 20... h5 {[%clk 0:02:02.1]} 21. Be6 {[%clk
0:00:25.1]} 21... Rh6 {[%clk 0:02:00.4]} 22. Bxd5 {[%clk 0:00:23]} 22... Bb7
{[%clk 0:01:59.8]} 23. Nb4 {[%clk 0:00:20.3]} 23... Bxd5 {[%clk 0:01:58.5]} 24.
Nxd5 {[%clk 0:00:21.7]} 24... Rc8 {[%clk 0:01:56.8]} 25. Rc1 {[%clk 0:00:19.3]}
25... Rhc6 {[%clk 0:01:55.6]} 26. Rxc6 {[%clk 0:00:20.3]} 26... Rxc6 {[%clk
0:01:56.4]} 27. Nb4 {[%clk 0:00:21.2]} 27... Rc4 {[%clk 0:01:53.3]} 28. b3
{[%clk 0:00:21.5]} 28... Rc8 {[%clk 0:01:53.4]} 29. Nb2 {[%clk 0:00:22.8]} 29...
e4 {[%clk 0:01:52]} 30. Nc4 {[%clk 0:00:22.6]} 30... Bf8 {[%clk 0:01:35.8]} 31.
Nd5 {[%clk 0:00:21.8]} 31... Rc5 {[%clk 0:01:33.7]} 32. Nb4 {[%clk 0:00:21.8]}
32... a5 {[%clk 0:01:33.4]} 33. Nc2 {[%clk 0:00:23]} 33... a4 {[%clk 0:01:28.5]}
34. Nxd4 {[%clk 0:00:22.7]} 34... axb3 {[%clk 0:01:29.6]} 35. Ne3 {[%clk
0:00:24.1]} 35... b2 {[%clk 0:01:30]} 36. Ndc2 {[%clk 0:00:23.4]} 36... Ne5
{[%clk 0:01:22.3]} 37. Rb1 {[%clk 0:00:23.2]} 37... Nd3 {[%clk 0:01:22.7]} 38.
Kf1 {[%clk 0:00:22.7]} 38... g4 {[%clk 0:01:20.7]} 39. Ke2 {[%clk 0:00:23.9]}
39... Bh6 {[%clk 0:01:15.9]} 40. f3 {[%clk 0:00:22.6]} 40... gxf3+ {[%clk
0:01:08.6]} 41. gxf3 {[%clk 0:00:22]} 41... Bxe3 {[%clk 0:01:09.1]} 42. Kd1
{[%clk 0:00:05.7]} 42... exf3 {[%clk 0:01:07.6]} 0-1

[Event "*** Titled Tuesday Blitz"]
[Site "Chess.com"]
[Date "2019.05.07"]
[Round "7"]
[White "Sutormin_DA"]
[Black "MatthewG-p4p"]
[Result "1-0"]
[WhiteElo "2542"]
[BlackElo "2680"]
[TimeControl "180+2"]
[EndTime "14:40:25 PDT"]
[Termination "Sutormin_DA won by checkmate"]

1. e4 {[%clk 0:03:01.9]} 1... e6 {[%clk 0:03:00.2]} 2. d4 {[%clk 0:03:03]} 2...
d5 {[%clk 0:03:01.4]} 3. Nc3 {[%clk 0:03:04.4]} 3... Bb4 {[%clk 0:03:02.4]} 4.
exd5 {[%clk 0:03:05.2]} 4... exd5 {[%clk 0:03:03.6]} 5. Bd3 {[%clk 0:03:06.7]}
5... Nf6 {[%clk 0:03:04.8]} 6. Ne2 {[%clk 0:03:01.7]} 6... O-O {[%clk
0:03:00.7]} 7. O-O {[%clk 0:03:01.8]} 7... c6 {[%clk 0:02:54.1]} 8. Bg5 {[%clk
0:02:42.4]} 8... h6 {[%clk 0:02:52.9]} 9. Bh4 {[%clk 0:02:39.5]} 9... Nbd7
{[%clk 0:02:52]} 10. Bg3 {[%clk 0:02:19.1]} 10... Re8 {[%clk 0:02:51.6]} 11. Nf4
{[%clk 0:02:19]} 11... Ne4 {[%clk 0:02:51.9]} 12. Nxe4 {[%clk 0:02:10.5]} 12...
dxe4 {[%clk 0:02:52.2]} 13. Bc4 {[%clk 0:02:11.9]} 13... Nf6 {[%clk 0:02:52.6]}
14. c3 {[%clk 0:01:54.5]} 14... Bf8 {[%clk 0:02:52.2]} 15. Re1 {[%clk
0:01:55.1]} 15... Bf5 {[%clk 0:02:47.4]} 16. a4 {[%clk 0:01:55.8]} 16... Qd7
{[%clk 0:02:47.2]} 17. a5 {[%clk 0:01:56.4]} 17... Rad8 {[%clk 0:02:47]} 18. Qb3
{[%clk 0:01:57.2]} 18... Bd6 {[%clk 0:02:34.9]} 19. Rad1 {[%clk 0:01:57.5]}
19... Bg4 {[%clk 0:02:31.1]} 20. Rd2 {[%clk 0:01:54.1]} 20... Qc7 {[%clk
0:02:29.5]} 21. Ne2 {[%clk 0:01:47.8]} 21... e3 {[%clk 0:02:25.6]} 22. fxe3
{[%clk 0:01:40.3]} 22... Rxe3 {[%clk 0:01:45.8]} 23. Bxd6 {[%clk 0:01:39.6]}
23... Rxd6 {[%clk 0:01:39.3]} 24. Rf1 {[%clk 0:01:40.6]} 24... Ne4 {[%clk
0:01:38]} 25. Rxf7 {[%clk 0:01:30.5]} 25... Qxa5 {[%clk 0:00:54.9]} 26. Rf3+
{[%clk 0:00:47.4]} 26... Kh8 {[%clk 0:00:48.8]} 27. Rf8+ {[%clk 0:00:41.5]}
27... Kh7 {[%clk 0:00:49.3]} 28. Bg8+ {[%clk 0:00:42.6]} 28... Kg6 {[%clk
0:00:49.4]} 29. Qf7+ {[%clk 0:00:42.5]} 29... Kg5 {[%clk 0:00:49.9]} 30. Qf4+
{[%clk 0:00:35]} 30... Kh5 {[%clk 0:00:41]} 31. Qxe3 {[%clk 0:00:21.5]} 31...
Nxd2 {[%clk 0:00:32.8]} 32. Nf4+ {[%clk 0:00:15]} 32... Kh4 {[%clk 0:00:33.8]}
33. g3+ {[%clk 0:00:15.4]} 33... Kg5 {[%clk 0:00:35.2]} 34. Nd5+ {[%clk
0:00:14.4]} 34... Kg6 {[%clk 0:00:26.2]} 35. Nf4+ {[%clk 0:00:15.3]} 35... Kg5
{[%clk 0:00:27.3]} 36. h4# {[%clk 0:00:16.9]} 1-0

[Event "*** Titled Tuesday Blitz"]
[Site "Chess.com"]
[Date "2019.05.07"]
[Round "7"]
[White "el-reptiliano"]
[Black "Jenia84"]
[Result "1-0"]
[WhiteElo "2189"]
[BlackElo "2241"]
[TimeControl "180+2"]
[EndTime "14:40:30 PDT"]
[Termination "el-reptiliano won by resignation"]

1. Nf3 {[%clk 0:03:00.1]} 1... Nf6 {[%clk 0:02:59.5]} 2. c4 {[%clk 0:02:59.1]}
2... e6 {[%clk 0:02:58.2]} 3. e3 {[%clk 0:02:57.3]} 3... d5 {[%clk 0:02:57.8]}
4. b3 {[%clk 0:02:57]} 4... c6 {[%clk 0:02:56.3]} 5. Bb2 {[%clk 0:02:51]} 5...
Nbd7 {[%clk 0:02:56.8]} 6. Nc3 {[%clk 0:02:48.9]} 6... Bd6 {[%clk 0:02:57.3]} 7.
Qc2 {[%clk 0:02:49.5]} 7... O-O {[%clk 0:02:58]} 8. Rg1 {[%clk 0:02:49.9]} 8...
Qe7 {[%clk 0:02:58.4]} 9. g4 {[%clk 0:02:50]} 9... e5 {[%clk 0:02:52.9]} 10. g5
{[%clk 0:02:44.7]} 10... Ne4 {[%clk 0:02:52.8]} 11. Nxe4 {[%clk 0:02:39.6]}
11... dxe4 {[%clk 0:02:53.4]} 12. Qxe4 {[%clk 0:02:40.6]} 12... Nc5 {[%clk
0:02:54.4]} 13. Qc2 {[%clk 0:02:41]} 13... e4 {[%clk 0:02:49.5]} 14. Qc3 {[%clk
0:02:28.6]} 14... Ne6 {[%clk 0:02:31.1]} 15. Bh3 {[%clk 0:02:15.9]} 15... exf3
{[%clk 0:02:26]} 16. O-O-O {[%clk 0:02:02.6]} 16... Ba3 {[%clk 0:02:21.2]} 17.
d4 {[%clk 0:01:55.5]} 17... Bxb2+ {[%clk 0:02:20.9]} 18. Kxb2 {[%clk 0:01:56.9]}
18... a5 {[%clk 0:02:17.5]} 19. e4 {[%clk 0:01:54.9]} 19... a4 {[%clk
0:02:17.8]} 20. b4 {[%clk 0:01:39.7]} 20... a3+ {[%clk 0:02:17.3]} 21. Kb3
{[%clk 0:01:36.2]} 21... b5 {[%clk 0:02:13.3]} 22. cxb5 {[%clk 0:01:29.1]} 22...
Nxd4+ {[%clk 0:02:04.6]} 23. Rxd4 {[%clk 0:01:26.5]} 23... Bxh3 {[%clk 0:02:05]}
24. bxc6 {[%clk 0:01:27.5]} 24... Be6+ {[%clk 0:01:57.9]} 25. Kc2 {[%clk
0:01:20.2]} 25... Bxa2 {[%clk 0:01:57.8]} 26. b5 {[%clk 0:01:20.5]} 26... Qc7
{[%clk 0:01:34.5]} 27. g6 {[%clk 0:01:13.6]} 27... hxg6 {[%clk 0:01:24.3]} 28.
Rxg6 {[%clk 0:01:11.9]} 28... Qe5 {[%clk 0:00:43.9]} 29. Rg1 {[%clk 0:00:32.1]}
29... Rad8 {[%clk 0:00:18.1]} 30. Rb4 {[%clk 0:00:29.9]} 30... Qxc3+ {[%clk
0:00:17.6]} 31. Kxc3 {[%clk 0:00:30.3]} 31... Be6 {[%clk 0:00:19.1]} 32. b6
{[%clk 0:00:29.9]} 32... a2 {[%clk 0:00:19.5]} 33. c7 {[%clk 0:00:28.6]} 33...
Rc8 {[%clk 0:00:19.9]} 34. Kb2 {[%clk 0:00:27.3]} 34... Rfe8 {[%clk 0:00:21.1]}
35. Rc1 {[%clk 0:00:26.1]} 35... g6 {[%clk 0:00:21.5]} 36. b7 {[%clk 0:00:27]}
36... Rxc7 {[%clk 0:00:22.8]} 37. Rxc7 {[%clk 0:00:28.3]} 37... Kg7 {[%clk
0:00:23.5]} 38. b8=Q {[%clk 0:00:28.6]} 38... Rxb8 {[%clk 0:00:24.1]} 39. Rxb8
{[%clk 0:00:30.5]} 39... g5 {[%clk 0:00:25.2]} 1-0